Cogmind - Beta 16.1 @@@ ROGUE MODE // 2026.05.03 @ 17:18:49 Player: The Overplayer Result: Destroyed by L-61 Swordsman with Power Sword Performance ------------- Evolutions (6) 3000 Regions Visited (16) 3200 Robots Destroyed (140) 700 Value Destroyed (5354) 5354 Prototype IDs (53) 1060 Alien Tech Used (0) 0 Bonus (4841) 4841 TOTAL SCORE: 18155 Bonus ------- High Alert Combat Kills 553 Follower Combat Kills 1688 Entered DSFs 1000 Network Hubs Disabled 200 Aligned with FarCom 300 Built Enhanced Grunts 300 A7 Reached Mainframe 300 Met R17 at Cetus 500 Cogmind --------- Core Integrity 0/1150 Matter 93/300 Energy 408/600 System Corruption 14% Temperature Cool (0) Movement Flying (40) Location -4/Armory Parts ------- > --- POWER (2) -------- (None) > --- PROPULSION (5) --- Field Propulsion Array > --- UTILITY (9) ------ Advanced Energy Well > --- WEAPON (3) ------- Tiamat Missile Launcher > --- INVENTORY (5) ---- Precision Energy Filter Advanced Dynamic Insulation System Light Antimatter Cannon Enhanced Hardcell Cannon Peak State ------------ > --- POWER ------------ Quantum Reactor Quantum Reactor > --- PROPULSION ------- Myomer Leg Improved Thunder Leg Improved Thunder Leg Improved Thunder Leg Improved Thunder Leg > --- UTILITY ---------- Advanced Heat Sink Large Storage Unit Energy Well Enhanced Optical Array Improved Signal Interpreter Kinecellerator Advanced Reaction Control System Improved Medium Armor Plating Centrium Medium Armor Plating > --- WEAPON ----------- KE Penetrator KE Penetrator Railgun > --- INVENTORY -------- Layered Medium Armor Plating Centrium Medium Armor Plating Advanced Variable Charge Gun Matter Neutralizer Matter Neutralizer Matter Neutralizer Matter Neutralizer Enhanced Gauss Cannon Enhanced Gauss Cannon Enhanced Gauss Cannon Heavy Missile Launcher Plasma Cutter [Rating: 126] Favorites ----------- Power Quantum Reactor Engine Improved Deuterium Engine Power Core Light Nuclear Core Reactor Quantum Reactor Propulsion Light Treads Treads Light Treads Leg Improved Thunder Leg Hover Unit Aerolev Unit Flight Unit Cesium-ion Thruster Utility Centrium Medium Armor Plating Device Advanced Heat Sink Storage Medium Storage Unit Processor Improved Signal Interpreter Hackware Hacking Suite Protection Centrium Medium Armor Plating Weapon Spread Laser Energy Gun Spread Laser Energy Cannon Matter Neutralizer Ballistic Gun Advanced KE Penetrator Ballistic Cannon Assault Cannon Launcher Tiamat Missile Launcher Special Weapon Improved Plasma Cutter Impact Weapon Heavy Flail Slashing Weapon Longsword +1 Build | -11 -10 -10 -10 -9 -8 -7 -7 -6 -6 -6 -6 -6 -5 -5 -4 -4 ------- Run | Yrd Mat Min Exi Min Mat Fac DSF Fac Ext Cet Arc Hub Fac DSF Fac Arm Slots Evolved 12 | . . . . . 4 2 . 2 . . . . 2 . 2 . Power 1 | . . . . . . . . . . . . . 1 . . . Propulsion 3 | . . . . . 2 . . . . . . . . . 1 . Utility 7 | . . . . . 2 2 . 2 . . . . . . 1 . Weapon 1 | . . . . . . . . . . . . . 1 . . . Parts Attached 159 | 7 11 4 4 1 37 3 1 8 5 11 2 9 5 5 16 30 Power 16 | 1 1 2 . 1 3 1 . 1 . 1 . 2 . . 2 1 Engine 7 | 1 1 . . 1 3 1 . . . . . . . . . . Core 3 | . . 2 . . . . . 1 . . . . . . . . Reactor 6 | . . . . . . . . . . 1 . 2 . . 2 1 Propulsion 47 | 2 4 . 2 . 11 . 1 4 3 3 . . 4 . 3 10 Treads 14 | 2 2 . 2 . 6 . . . . 2 . . . . . . Leg 15 | . . . . . . . . . . 1 . . 4 . 3 7 Wheel . | . . . . . . . . . . . . . . . . . Hover 6 | . . . . . 4 . 1 . 1 . . . . . . . Flight 12 | . 2 . . . 1 . . 4 2 . . . . . . 3 Utility 53 | 2 3 2 1 . 11 2 . 3 1 3 2 7 . 3 3 10 Device 18 | 1 . 2 . . 1 . . 2 . . . 2 . 1 3 6 Storage 8 | 1 2 . 1 . 1 . . . . . . 1 . 1 . 1 Processor 10 | . 1 . . . 5 . . 1 . . . . . 1 . 2 Hackware 9 | . . . . . 3 2 . . 1 . 2 . . . . 1 Protection 8 | . . . . . 1 . . . . 3 . 4 . . . . Artifact . | . . . . . . . . . . . . . . . . . Weapon 43 | 2 3 . 1 . 12 . . . 1 4 . . 1 2 8 9 Energy Gun 8 | 1 3 . . . 2 . . . . 1 . . . . . 1 Energy Cannon 4 | . . . . . . . . . . 1 . . . . 2 1 Ballistic Gun 12 | 1 . . . . 6 . . . . 2 . . . 2 1 . Ballistic Cannon 10 | . . . . . 2 . . . . . . . 1 . 3 4 Launcher 2 | . . . . . . . . . . . . . . . 1 1 Special Weapon 1 | . . . . . . . . . . . . . . . 1 . Impact Weapon 4 | . . . . . 2 . . . 1 . . . . . . 1 Slashing Weapon 2 | . . . 1 . . . . . . . . . . . . 1 Piercing Weapon . | . . . . . . . . . . . . . . . . . Special Melee Weapon . | . . . . . . . . . . . . . . . . . Unidentified Prototypes 27 | . . . . . 5 1 . . . 6 . 1 . . . 14 Parts Lost 46 | . 4 1 . . 1 . 6 . 5 2 . 2 . 2 19 4 Power 7 | . 1 1 . . . . 1 . 1 . . . . . 2 1 Propulsion 19 | . 2 . . . 1 . 5 . 3 2 . . . . 4 2 Utility 13 | . . . . . . . . . 1 . . 1 . 1 9 1 Weapon 7 | . 1 . . . . . . . . . . 1 . 1 4 . Highest Loss Streak 14 | . 2 1 . . 1 . 4 . 5 2 . 2 . 1 14 4 To Critical Strikes . | . . . . . . . . . . . . . . . . . Average Backups 7 | . 7 9 9 9 13 3 4 3 4 4 5 4 3 4 8 4 Power . | . . . . . 1 . . . . . 1 1 . . . . Propulsion . | . . 3 2 1 1 1 1 . . . . . . . . . Utility 2 | . 3 4 4 5 5 1 2 . 1 1 1 . . 1 1 2 Weapon 2 | . 2 1 2 2 3 . . 1 . 1 2 2 2 2 5 1 Tool/Special . | . . . . . . . . . . . . . . . . . Unused Backups 38 | . 9 1 1 1 19 . . . . 2 . . . . 3 2 Power 3 | . . . . . 1 . . . . 1 . . . . 1 . Propulsion 4 | . 2 1 . . 1 . . . . . . . . . . . Utility 20 | . 5 . 1 1 12 . . . . 1 . . . . . . Weapon 9 | . 1 . . . 5 . . . . . . . . . 1 2 Tool/Special 2 | . 1 . . . . . . . . . . . . . 1 . Average Slot Usage (%) 86 | . 94 99 84 100 98 99 71 88 92 81 85 85 84 98 77 34 Engine 4 | . 12 8 . 12 9 7 . 3 2 . . . . . . . Core 1 | . . 4 14 1 . . . 1 3 . . . . . . . Reactor 2 | . . . . . . . . . . 5 6 5 7 11 8 2 Treads 15 | . 24 28 28 28 28 . . . . 6 13 13 4 . . . Leg 2 | . . . . . . . . . . . . . 10 23 18 8 Hover 2 | . . . . . 6 30 9 6 4 . . . . . . . Flight 1 | . 1 . . . . . . 10 17 . . . . . . 5 Device 7 | . 2 5 14 14 7 . . 11 9 6 6 8 5 10 10 6 Storage 6 | . 11 14 14 14 7 . . . . . . 3 5 5 8 2 Processor 9 | . 13 8 . . 18 . . 5 6 6 6 6 5 7 7 2 Hackware 6 | . . . . . . 37 38 33 33 26 19 2 . . . . Protection 8 | . . . . . 1 7 7 1 . 13 20 31 29 19 8 . Energy Gun 7 | . 20 28 6 28 6 . . 10 3 4 . . 3 1 1 . Ballistic Gun 5 | . 6 . . . 5 . . . . 6 13 12 5 14 8 . Ballistic Cannon 1 | . . . . . 3 . . . . . . . 1 1 . 3 Slashing Weapon 1 | . . . 7 . 1 7 6 . 6 . . . . . . . Peak Build Rating 126 | 7 11 14 18 14 45 50 50 55 57 110 114 118 122 122 126 101 Average Rating 57 | 5 9 11 15 12 39 49 34 39 49 84 112 117 111 114 95 49 On Entrance 48 | . 7 11 14 14 13 44 50 19 55 44 110 114 105 122 100 4 Avg Prop Armor Cover (%) 11 | . . . . . 3 . 23 . 9 9 . . . . . 18 Naked Turns 165 | . . . . . . . . . . . . . . . 100 65 Heaviest Build 110 | 15 91 22 22 22 100 18 18 18 20 59 56 77 102 102 110 56 Greatest Support 160 | 40 40 40 40 40 112 32 32 21 21 160 160 160 160 112 137 129 Greatest Overweight (x) 11 | . 3 . . . 1 . 2 . 2 11 . . 3 . 1 . Average Overweight (x) . | . . . . . . . . . . . . . . . . . Largest Inventory Capacity 25 | 8 25 10 10 10 25 5 5 5 5 5 5 5 5 15 15 5 Average Capacity 9 | 7 9 10 10 10 19 5 5 5 5 5 5 5 5 6 13 5 Most Carried 25 | 2 10 10 10 10 25 4 5 5 5 5 5 5 5 5 15 5 Average Carried 8 | . 7 9 9 9 17 3 4 3 4 4 5 4 3 4 8 4 Final Capacity 15 | 8 10 10 10 10 5 5 5 5 5 5 5 5 5 15 5 5 Final Carried 10 | 2 10 10 9 10 4 4 4 4 4 5 5 5 3 5 5 4 Class Distribution -------------------- 51% | Mutant 14% | Scavenger-Mutant 12% | Hacker-Mutant 9% | Scavenger-Tank 8% | Scavenger-Skirmisher 3% | Hacker-Scout Dominant Class ---------------- Mutant | -10/Materials Mutant | -10/Mines Mutant | -10/Exiles Mutant | -9/Mines Mutant | -8/Materials Hacker-Mutant | -7/Factory Hacker-Mutant | -7/DSF Hacker-Scout | -6/Factory Hacker-Scout | -6/Extension Hacker-Mutant | -6/Cetus Scavenger-Mutant | -6/Archives Scavenger-Mutant | -6/Hub_04(d) Scavenger-Mutant | -5/Factory Scavenger-Tank | -5/DSF Scavenger-Tank | -4/Factory Mutant | -4/Armory Resources | -11 -10 -10 -10 -9 -8 -7 -7 -6 -6 -6 -6 -6 -5 -5 -4 -4 ----------- Run | Yrd Mat Min Exi Min Mat Fac DSF Fac Ext Cet Arc Hub Fac DSF Fac Arm Matter Collected 3973 | 178 272 110 . 89 835 . . . 160 118 78 821 103 78 454 677 Remotely . | . . . . . . . . . . . . . . . . . Salvage Created 5400 | 98 331 126 . 36 1290 . . . 253 163 38 2198 . 47 652 168 Parts 288 | 8 14 9 . 8 76 . . . 17 4 5 99 . 2 40 6 Haulers Intercepted 7 | . 2 . . . 4 . . . . . . 1 . . . . Recyclers Shooed 2 | . . . . . . . . . . . . . . . 2 . Parts Field Recycled . | . . . . . . . . . . . . . . . . . Retrieved Matter . | . . . . . . . . . . . . . . . . . Parts Self-Destructed . | . . . . . . . . . . . . . . . . . Prevented . | . . . . . . . . . . . . . . . . . Parts Restored . | . . . . . . . . . . . . . . . . . Kills | -11 -10 -10 -10 -9 -8 -7 -7 -6 -6 -6 -6 -6 -5 -5 -4 -4 ------- Run | Yrd Mat Min Exi Min Mat Fac DSF Fac Ext Cet Arc Hub Fac DSF Fac Arm Combat Hostiles Destroyed 99 | . 9 4 . 3 27 . . . 4 3 . 34 . 1 8 6 Melee 16 | . . . . . 10 . . . 4 2 . . . . . . Guns 67 | . 9 4 . 3 13 . . . . . . 33 . . 5 . Cannons 8 | . . . . . 4 . . . . 1 . . . 1 1 1 AOE 8 | . . . . . . . . . . . . 1 . . 2 5 Classes Destroyed 15 | 2 4 . . . 4 . . . . . . 4 . 1 . . Worker 5 | . . . . . . . . . . . . 4 . . 1 . Builder 10 | . . . . . 1 . . . . . . 4 . . 5 . Tunneler 3 | 2 . . . . . . . . . . . 1 . . . . Hauler 7 | . 2 . . . 4 . . . . . . 1 . . . . Recycler 2 | 1 . . . . . . . . . . . . . . 1 . Operator 6 | . . . . . 3 . . . . . 1 1 . . . 1 Watcher 8 | . 3 . . . . . . . 2 . . 2 . . . 1 Swarmer 20 | . 3 . . 3 3 . . . 2 . . 4 . . . 5 Cutter 2 | . . . . . . . . . . . . 2 . . . . Grunt 52 | . 6 4 . . 17 . . . . . . 22 . . 3 . Sentry 9 | . . . . . 5 . . . 2 . . 1 . . . 1 Specialist 1 | . . . . . . . . . . . . . . 1 . . Hunter 7 | . . . . . 2 . . . . . . 2 . . 3 . Programmer 4 | . . . . . . . . . . . . 2 . . 2 . Behemoth 1 | . . . . . . . . . . . . 1 . . . . Cetus Guard 3 | . . . . . . . . . . 3 . . . . . . Best Kill Streak 10 | 3 4 3 . 3 9 . . . 3 2 1 10 . 1 7 6 Combat Bots Only 7 | . 4 3 . 3 5 . . . 3 2 . 7 . 1 3 5 Max Kills in Single Turn 4 | 1 1 1 . 2 2 . . . 1 1 1 2 . 1 4 4 Gunslinging 1 | . . . . 1 1 . . . . . . 1 . . . . Exploded 3 | . . . . . . . . . . . . 1 . . 1 3 Melee 1 | . . . . . 1 . . . 1 1 . . . . . . Uniques/NPCs Destroyed . | . . . . . . . . . . . . . . . . . Combat | -11 -10 -10 -10 -9 -8 -7 -7 -6 -6 -6 -6 -6 -5 -5 -4 -4 -------- Run | Yrd Mat Min Exi Min Mat Fac DSF Fac Ext Cet Arc Hub Fac DSF Fac Arm Hostile Shots Fired 916 | . 58 20 . 3 98 . 19 . 84 9 6 239 . 50 243 87 Missed 315 | . 10 4 . 2 23 . 8 . 43 3 2 57 . 26 98 39 Hits 601 | . 48 16 . 1 75 . 11 . 41 6 4 182 . 24 145 48 Melee 9 | . . . . . . . . . . . . 8 . . . 1 Projectile 592 | . 48 16 . 1 75 . 11 . 41 6 4 174 . 24 145 47 AOE 4 | . . . . . . . . . . . . 2 . . 2 . Critical Strikes 29 | . . . . . 7 . 1 . . . 1 11 . . 6 3 Part Disruptions 4 | . . . . . . . . . . . . . . . . 4 Damage Taken 12230 | . 587 228 . 6 1205 . 666 . 544 174 127 3296 . 712 3608 1077 Core 2034 | . 77 18 . 6 137 . 205 . 220 29 . 168 . 15 991 168 Absorbed by Shields 173 | . . . . . . . . . 43 74 . . . . . 56 Reduced by Siege Mode 142 | . . . . . . . . . . . . 142 . . . . Redirected to Shielding 70 | . . . . . 16 . 54 . . . . . . . . . Regen/Repaired (Parts) 860 | . 17 . . . 78 . . . . . . . 765 . . . Core Remaining (%) 75 | 100 . . . 59 75 . 70 . . . . 50 . 98 . . Volleys Fired 264 | 7 35 8 . 2 51 . . 1 . 2 6 100 . 2 42 8 Largest 3 | 2 2 2 . 2 2 . . 1 . 2 2 2 . 3 3 3 Hottest 210 | 70 130 130 . 130 102 . . 30 . 125 70 70 . 162 210 174 Shots Fired 535 | 14 64 16 . 4 102 . . 1 . 3 12 200 . 6 98 15 Gun 457 | 14 64 16 . 4 86 . . 1 . 2 12 200 . 4 54 . Cannon 69 | . . . . . 16 . . . . 1 . . . 2 41 9 Launcher 9 | . . . . . . . . . . . . . . . 3 6 Special . | . . . . . . . . . . . . . . . . . Kinetic 412 | 7 23 . . . 81 . . . . 2 12 200 . 4 74 9 Thermal 114 | 7 41 16 . 4 21 . . 1 . 1 . . . 2 21 . Explosive 9 | . . . . . . . . . . . . . . . 3 6 Electromagnetic . | . . . . . . . . . . . . . . . . . Robot Hit Streak 26 | 6 11 8 . 4 26 . . . . 1 6 11 . 2 13 12 Robot Miss Streak 11 | 2 11 4 . 4 2 . . . . 1 2 5 . 1 4 1 Penetration Max 1 | . . . . . 1 . . . . . 1 1 . . 1 . Secondary Targets 10 | . . 1 . 1 1 . . . . . . 6 . . 1 . Max Gunslinging Chain 1 | . . 1 . 1 1 . . . . . . 1 . . 1 . Shots Hit Robots 431 | 9 53 16 . 4 130 . . . 12 8 8 128 . 4 49 10 Core Hits 308 | 4 54 23 . 6 87 . . . 7 4 5 70 . 1 32 15 Critical Kills 18 | . 1 . . . . . . . . 1 1 14 . . 1 . Critical Parts Destroyed 18 | 1 . . . . 1 . . . . . . 12 . 1 2 1 Critical Strikes 51 | 2 1 . . . 7 . . . 1 3 1 27 . 1 7 1 Burn 1 | 1 . . . . . . . . . . . . . . . . Destroy 35 | 1 1 . . . 1 . . . . . 1 27 . 1 3 . Blast 4 | . . . . . . . . . . . . . . . 4 . Smash 3 | . . . . . 1 . . . . 1 . . . . . 1 Sever 8 | . . . . . 5 . . . 1 2 . . . . . . Melee Attacks 65 | . . . . . 39 3 . 1 14 7 . . . . . 1 Impact 6 | . . . . . 2 1 . . 1 1 . . . . . 1 Slashing 59 | . . . . . 37 2 . 1 13 6 . . . . . . Piercing . | . . . . . . . . . . . . . . . . . Sneak Attacks 6 | . . . . . 5 . . . . . . . . . . 1 Combat Hostiles 1 | . . . . . 1 . . . . . . . . . . . Follow-up Attacks 2 | . . . . . 1 . . . . 1 . . . . . . Damage Inflicted 14796 | 109 802 219 . 25 3791 . . . 640 379 289 4267 . 120 2416 1739 Guns 8101 | 109 691 219 . 25 1384 . . . . . 289 4265 . 53 1066 . Cannons 1118 | . . . . . 347 . . . . 35 . . . 67 494 175 Explosions 2469 | . 111 . . . 111 . . . . . . . . . 856 1391 Melee 3106 | . . . . . 1949 . . . 640 344 . . . . . 173 Ramming 2 | . . . . . . . . . . . . 2 . . . . Kinetic 7943 | 32 175 . . . 1354 . . . . . 289 4265 . 93 1560 175 Thermal 1276 | 77 516 219 . 25 377 . . . . 35 . . . 27 . . Explosive 2469 | . 111 . . . 111 . . . . . . . . . 856 1391 Electromagnetic . | . . . . . . . . . . . . . . . . . Impact 259 | . . . . . 39 . . . . 47 . . . . . 173 Slashing 2847 | . . . . . 1910 . . . 640 297 . . . . . . Piercing . | . . . . . . . . . . . . . . . . . Highest Corruption 14 | . 2 2 2 2 . . . . . . . 8 . . 12 14 Average Corruption 4 | . 2 2 2 2 . . . . . . . 5 . . 4 12 Corruption Purged . | . . . . . . . . . . . . . . . . . Corruption Blocked . | . . . . . . . . . . . . . . . . . Effects 76 | . 8 4 3 1 . . . . . . . 26 . . 11 23 Message Errors 18 | . 2 1 2 . . . . . . . . 4 . . 3 6 Matter Fused 16 | . 1 2 . 1 . . . . . . . 5 . . 2 5 Heat Flow Errors 10 | . 2 . 1 . . . . . . . . 4 . . 1 2 Energy Discharges 6 | . 2 . . . . . . . . . . 1 . . 2 1 Parts Rejected 2 | . . . . . . . . . . . . 1 . . 1 . Data Loss (minor) 14 | . 1 . . . . . . . . . . 6 . . 2 5 Data Loss (major) 5 | . . 1 . . . . . . . . . 1 . . . 3 Misfires 3 | . . . . . . . . . . . . 2 . . . 1 Alerts 1 | . . . . . . . . . . . . 1 . . . . Weapon Failures 1 | . . . . . . . . . . . . 1 . . . . Overload Shots . | . . . . . . . . . . . . . . . . . Overflow Damage 689 | . 39 . . . 278 . . . 85 . . . . . 28 259 Projectiles 31 | . . . . . 22 . . . . . . . . . 9 . Explosions 159 | . 39 . . . 15 . . . . . . . . . 19 86 Melee 499 | . . . . . 241 . . . 85 . . . . . . 173 Knockbacks 12 | . . . . . 6 . . . . . . . . . 6 . Impact 1 | . . . . . 1 . . . . . . . . . . . Kinetic 11 | . . . . . 5 . . . . . . . . . 6 . Secondary . | . . . . . . . . . . . . . . . . . Self-Inflicted Damage 156 | . 54 . . . 88 . . . . . . . . . . 14 Shots 3 | . 1 . . . 1 . . . . . . . . . . 1 Rammed 1 | . . . . . . . . . . . . 1 . . . . Targets Rammed 1 | . . . . . . . . . . . . 1 . . . . Kicked . | . . . . . . . . . . . . . . . . . Crushed . | . . . . . . . . . . . . . . . . . Highest Temperature 399 | 36 399 225 238 66 11 . 12 . 12 54 36 315 . 48 316 98 Average Temperature 97 | 13 87 107 126 33 5 . 12 . 8 30 16 133 . 24 94 51 Received Heat Transfer 3124 | . 210 126 . . 603 . 117 . 51 9 18 1109 . 84 776 21 Effects 5 | . . 2 . . . . . . . . . 2 . . 1 . Energy Bleed 1 | . . . . . . . . . . . . 1 . . . . Interference 3 | . . 2 . . . . . . . . . 1 . . . . Matter Decay 1 | . . . . . . . . . . . . . . . 1 . Siege Activations 13 | . . . . . . . . . . . 1 12 . . . . Total Turns 322 | . . . . . . . . . . . 8 314 . . . . Longest Duration 97 | . . . . . . . . . . . 8 97 . . . . Martial Activations . | . . . . . . . . . . . . . . . . . Shielding Activations . | . . . . . . . . . . . . . . . . . Robots Disrupted . | . . . . . . . . . . . . . . . . . Combat Hostiles . | . . . . . . . . . . . . . . . . . Robots Corrupted 1 | . . . . . . . . . . . . . . . . 1 Combat Hostiles . | . . . . . . . . . . . . . . . . . Parts Fried 1 | . . . . . . . . . . . . 1 . . . . Impact Corruptions 8 | . . . . . 1 . . . . . . . . . . 7 Robots Melted . | . . . . . . . . . . . . . . . . . Combat Hostiles . | . . . . . . . . . . . . . . . . . Parts Melted 2 | 1 1 . . . . . . . . . . . . . . . Heat Transferred 1753 | 296 650 270 . 30 470 . . . . . . . . 37 . . Parts Sabotaged . | . . . . . . . . . . . . . . . . . Parts Stolen . | . . . . . . . . . . . . . . . . . Parts Stripped . | . . . . . . . . . . . . . . . . . Power Chain Reactions . | . . . . . . . . . . . . . . . . . Alert | -11 -10 -10 -10 -9 -8 -7 -7 -6 -6 -6 -6 -6 -5 -5 -4 -4 ------- Run | Yrd Mat Min Exi Min Mat Fac DSF Fac Ext Cet Arc Hub Fac DSF Fac Arm Maximum Alert Level 3 | . . . . . 2 1 1 . . 1 1 3 2 1 1 3 Low Security (%) 68 | 100 100 100 . 100 64 . 92 100 100 93 27 21 . . 93 54 Level 1 17 | . . . . . 23 100 7 . . 6 72 31 44 100 6 3 Level 2 7 | . . . . . 11 . . . . . . 13 55 . . 8 Level 3 6 | . . . . . . . . . . . . 33 . . . 33 Level 4 . | . . . . . . . . . . . . . . . . . Level 5 . | . . . . . . . . . . . . . . . . . High Security . | . . . . . . . . . . . . . . . . . Max Security . | . . . . . . . . . . . . . . . . . Peak Influence 972 | 10 114 70 . 70 609 332 221 86 84 285 280 972 500 267 250 803 Initial 472 | . . 1 . . . 276 221 84 9 2 108 80 472 217 129 119 Average 172 | 1 34 13 . 23 156 299 183 51 30 43 219 455 405 246 82 356 Influence Increases 5879 | 15 360 100 . 70 880 121 . 15 364 452 202 1459 28 50 667 1096 Destroy 0b10 Robot/C 2600 | . 180 80 . 60 540 . . . 140 220 80 700 . 20 160 420 Destroy 0b10 Robot/NC 235 | 15 25 . . . 40 . . . 10 10 5 65 . . 35 30 Destroy Leader 538 | . 40 20 . 10 138 . . . 34 10 . 166 . . 40 80 Allied During Kill 596 | . . . . . . . . . 40 172 85 30 . . . 269 Trap Triggered on 0b10 40 | . . . . . . . . . . . . 40 . . . . Successful Hack 123 | . 17 . . . 9 . . 14 19 13 . . 28 . 23 . Select Force Hacks 160 | . . . . . . 60 . . . . . . . . 100 . Disable Machine 360 | . 30 . . . 45 15 . . . . 30 120 . . 15 105 Anti-Garrison Action 200 | . . . . . . . . . . . . 200 . . . . Destroy Structure 307 | . 8 . . . 3 1 . 1 1 27 2 48 . . 84 132 Partial Spotted 90 | . 15 . . . . 45 . . 30 . . . . . . . Lose Combat Pursuer 630 | . 45 . . . 105 . . . 90 . . 90 . 30 210 60 Influence Decreases 5086 | 15 355 101 4 70 271 413 156 157 378 186 243 724 683 113 670 547 Entered New Map 1669 | . . 4 4 . . 333 96 77 10 3 163 150 493 93 118 125 Time Decay 2611 | 15 315 87 . 70 261 80 . 80 161 154 80 494 190 . 362 262 Lost Part 460 | . 40 10 . . 10 . 60 . 50 20 . 20 . 20 190 40 Lost Ally 346 | . . . . . . . . . 157 9 . 60 . . . 120 Squads Dispatched 36 | . . . . . 7 2 . . . . . 12 1 1 8 5 Investigation 10 | . . . . . 2 2 . . . . . 2 1 . 2 1 Extermination 5 | . . . . . . . . . . . . 3 . . 1 1 Reinforcement 17 | . . . . . 2 . . . . . . 6 . 1 5 3 Assault 1 | . . . . . . . . . . . . 1 . . . . Garrison 3 | . . . . . 3 . . . . . . . . . . . Intercept . | . . . . . . . . . . . . . . . . . Searches Triggered . | . . . . . . . . . . . . . . . . . Construction Impeded 3 | . . . . . . . . . . . . 1 . . 2 . Haulers Reinforced 4 | . . . . . . . . . . . . 3 . . 1 . Active Scanning Responses . | . . . . . . . . . . . . . . . . . Cargo Convoy Interrupts . | . . . . . . . . . . . . . . . . . Stealth | -11 -10 -10 -10 -9 -8 -7 -7 -6 -6 -6 -6 -6 -5 -5 -4 -4 --------- Run | Yrd Mat Min Exi Min Mat Fac DSF Fac Ext Cet Arc Hub Fac DSF Fac Arm Distress Signals 14 | . 1 . . . 3 . . . 2 2 . 2 . . 1 3 Communications Jammed . | . . . . . . . . . . . . . . . . . Distress Signals . | . . . . . . . . . . . . . . . . . Times Spotted 241 | . 22 4 . 4 40 . 4 . 17 10 3 62 . 5 37 33 Peak Tracking Total 13 | . 6 4 . 4 6 . 4 . 11 5 1 7 1 4 13 13 Tactical Retreats 23 | . 2 . . . 3 . . . 3 . . 6 . 2 5 2 Traps | -11 -10 -10 -10 -9 -8 -7 -7 -6 -6 -6 -6 -6 -5 -5 -4 -4 ------- Run | Yrd Mat Min Exi Min Mat Fac DSF Fac Ext Cet Arc Hub Fac DSF Fac Arm Traps Triggered 14 | . 1 . . . 1 . . . 1 . . 3 . 2 2 4 Indirectly . | . . . . . . . . . . . . . . . . . Trap Hack Attempts . | . . . . . . . . . . . . . . . . . Triggered . | . . . . . . . . . . . . . . . . . Disarmed . | . . . . . . . . . . . . . . . . . Reprogrammed 6 | . . . . . . . . . . . . 6 . . . . Reused 4 | . . . . . . . . . . . . 4 . . . . Traps Extracted . | . . . . . . . . . . . . . . . . . Installed . | . . . . . . . . . . . . . . . . . Triggered 4 | . . . . . . . . . . . . 4 . . . . Objects Rigged 5 | . 5 . . . . . . . . . . . . . . . Exploded 1 | . 1 . . . . . . . . . . . . . . . Machines | -11 -10 -10 -10 -9 -8 -7 -7 -6 -6 -6 -6 -6 -5 -5 -4 -4 ---------- Run | Yrd Mat Min Exi Min Mat Fac DSF Fac Ext Cet Arc Hub Fac DSF Fac Arm Machines Disabled 25 | . 2 . . . 3 1 . . 1 . 2 8 . . 1 7 Max in Single Turn 3 | . 2 . . . 3 1 . . . . 1 1 . . 1 2 Garrison Access 3 | . . . . . . . . . . . . 1 1 . 1 . Network Hub 1 | . . . . . . . . . . . . 1 . . . . Energy Cycler 1 | . . . . . . . . . 1 . . . . . . . Machines Repaired . | . . . . . . . . . . . . . . . . . Machines Dismantled . | . . . . . . . . . . . . . . . . . Machines Sabotaged . | . . . . . . . . . . . . . . . . . Overloaded Fab Kills . | . . . . . . . . . . . . . . . . . Hacking | -11 -10 -10 -10 -9 -8 -7 -7 -6 -6 -6 -6 -6 -5 -5 -4 -4 --------- Run | Yrd Mat Min Exi Min Mat Fac DSF Fac Ext Cet Arc Hub Fac DSF Fac Arm Machines Accessed 52 | . 4 . 1 . 6 3 . 4 13 3 1 4 3 . 8 2 Terminals 31 | . 3 . . . 4 1 . 1 12 3 . 3 1 . 3 . Fabricators 3 | . . . . . . . . . . . . . . . 2 1 Repair Stations 6 | . 1 . . . 2 . . 1 1 . . . 1 . . . Recycling Units 3 | . . . . . . . . 1 . . . . . . 1 1 Scanalyzers 3 | . . . . . . 2 . . . . . . . . 1 . Garrison Access 4 | . . . . . . . . 1 . . . 1 1 . 1 . Total Hacks 149 | . 12 . 1 . 13 5 . 11 45 8 5 14 9 . 18 8 Successful 72 | . 6 . 1 . 6 4 . 5 23 3 5 2 4 . 11 2 Failed 76 | . 6 . . . 7 . . 6 22 5 . 12 5 . 7 6 Catastrophic 12 | . 1 . . . 3 . . . 3 1 . 3 . . 1 . Database Lockouts 1 | . . . . . . 1 . . . . . . . . . . Manual 33 | . 6 . 1 . 2 2 . 1 5 2 . 4 3 . 2 5 Terminals 92 | . 10 . . . 8 1 . 4 42 8 . 11 1 . 7 . Fabricators 7 | . . . . . . . . . . . . . . . 2 5 Repair Stations 18 | . 2 . . . 5 . . 2 3 . . . 6 . . . Recycling Units 9 | . . . . . . . . 3 . . . . . . 3 3 Scanalyzers 9 | . . . . . . 4 . . . . . . . . 5 . Garrison Access 8 | . . . . . . . . 2 . . . 3 2 . 1 . Terminal Hacks 43 | . 3 . 1 . 2 1 . 2 21 3 5 1 1 . 3 . Record 13 | . 1 . . . . . . . 5 2 5 . . . . . Part Schematic 1 | . . . . . . . . . 1 . . . . . . . Robot Analysis 1 | . . . . . . . . . 1 . . . . . . . Prototype ID Bank 1 | . . . . . . . . . . . . . . . 1 . Open Door 7 | . . . . . . . . . 6 1 . . . . . . Open DSF 2 | . . . . . . 1 . . . . . . 1 . . . Repair Station Index 1 | . . . . . . . . . . . . . . . 1 . Alert Level 2 | . 1 . . . . . . . 1 . . . . . . . Reprogram Traps 1 | . . . . . . . . . . . . 1 . . . . Maintenance Status 1 | . . . . . . . . . 1 . . . . . . . Transport Status 2 | . 1 . . . 1 . . . . . . . . . . . Investigation Status 1 | . . . . . 1 . . . . . . . . . . . Recall Investigation 1 | . . . . . . . . . 1 . . . . . . . Recall Assault 1 | . . . . . . . . . 1 . . . . . . . Registered Components 3 | . . . . . . . . 1 1 . . . . . 1 . Registered Prototypes 2 | . . . . . . . . 1 1 . . . . . . . Zone Layout 2 | . . . . . . . . . 2 . . . . . . . Proto ID Catalog 1 | . . . 1 . . . . . . . . . . . . . Fabricator Hacks . | . . . . . . . . . . . . . . . . . Repair Station Hacks 11 | . 2 . . . 4 . . 1 2 . . . 2 . . . Scan Component 4 | . 1 . . . 2 . . . . . . . 1 . . . Repair 4 | . 1 . . . 2 . . . . . . . 1 . . . Refit 3 | . . . . . . . . 1 2 . . . . . . . Recycling Unit Hacks 5 | . . . . . . . . 1 . . . . . . 3 1 Report Inventory 3 | . . . . . . . . 1 . . . . . . 1 1 Retrieve Components 2 | . . . . . . . . . . . . . . . 2 . Scanalyzer 3 | . . . . . . 1 . . . . . . . . 2 . Insert Component 1 | . . . . . . . . . . . . . . . 1 . Analyze 1 | . . . . . . . . . . . . . . . 1 . Retrieve Study 1 | . . . . . . 1 . . . . . . . . . . Garrison Access Hacks 2 | . . . . . . . . . . . . . 1 . 1 . Seal Access 2 | . . . . . . . . . . . . . 1 . 1 . Unauthorized Hacks 8 | . 1 . . . . 2 . 1 . . . 1 . . 2 1 Terminals 1 | . 1 . . . . . . . . . . . . . . . Detonate 1 | . 1 . . . . . . . . . . . . . . . Fabricators 3 | . . . . . . . . . . . . . . . 2 1 Liberate 1 | . . . . . . . . . . . . . . . . 1 Overload 2 | . . . . . . . . . . . . . . . 2 . Repair Stations . | . . . . . . . . . . . . . . . . . Recycling Units 1 | . . . . . . . . 1 . . . . . . . . Recyclers 1 | . . . . . . . . 1 . . . . . . . . Scanalyzers 2 | . . . . . . 2 . . . . . . . . . . Extract 2 | . . . . . . 2 . . . . . . . . . . Garrison Access 1 | . . . . . . . . . . . . 1 . . . . Jam 1 | . . . . . . . . . . . . 1 . . . . Data Cores Recovered 2 | . . . . . 1 . . . 1 . . . . . . . Used . | . . . . . . . . . . . . . . . . . Hacking Detections 28 | . 2 . . . 4 1 . 2 7 3 . 4 1 . 2 2 Full Trace Events 3 | . 1 . . . 1 . . . . . . . 1 . . . Feedback Events . | . . . . . . . . . . . . . . . . . Feedback Blocked . | . . . . . . . . . . . . . . . . . Robot Schematics Acquired . | . . . . . . . . . . . . . . . . . Robots Built . | . . . . . . . . . . . . . . . . . Authchips . | . . . . . . . . . . . . . . . . . Time . | . . . . . . . . . . . . . . . . . Total Robot Build Rating . | . . . . . . . . . . . . . . . . . Part Schematics Acquired 17 | . . . . . . 16 . . 1 . . . . . . . Parts Built . | . . . . . . . . . . . . . . . . . Authchips . | . . . . . . . . . . . . . . . . . Time . | . . . . . . . . . . . . . . . . . Total Part Build Rating . | . . . . . . . . . . . . . . . . . Part Studies Acquired 1 | . . . . . . 1 . . . . . . . . . . Parts Repaired 4 | . 1 . . . 2 . . . . . . . 1 . . . Time 178 | . 32 . . . 92 . . . . . . . 54 . . . Parts Recycled . | . . . . . . . . . . . . . . . . . Recycled Matter . | . . . . . . . . . . . . . . . . . Retrieved Matter . | . . . . . . . . . . . . . . . . . Retrieved Components 9 | . . . . . . . . . . . . . . . 9 . Parts Scanalyzed 1 | . . . . . . . . . . . . . . . 1 . Part Schematics Acquired . | . . . . . . . . . . . . . . . . . Parts Damaged . | . . . . . . . . . . . . . . . . . Bothacking | -11 -10 -10 -10 -9 -8 -7 -7 -6 -6 -6 -6 -6 -5 -5 -4 -4 ------------ Run | Yrd Mat Min Exi Min Mat Fac DSF Fac Ext Cet Arc Hub Fac DSF Fac Arm Used RIF Installer . | . . . . . . . . . . . . . . . . . Robots Hacked . | . . . . . . . . . . . . . . . . . Non-combat . | . . . . . . . . . . . . . . . . . Combat . | . . . . . . . . . . . . . . . . . Robot Hacks Applied . | . . . . . . . . . . . . . . . . . Relay Couplers Released . | . . . . . . . . . . . . . . . . . Fabnet Peak Effective % . | . . . . . . . . . . . . . . . . . Robots Rewired 7 | . . . . . . . . . . . . . . . . 7 Allies Hacked . | . . . . . . . . . . . . . . . . . Hacks Repelled . | . . . . . . . . . . . . . . . . . Allies | -11 -10 -10 -10 -9 -8 -7 -7 -6 -6 -6 -6 -6 -5 -5 -4 -4 -------- Run | Yrd Mat Min Exi Min Mat Fac DSF Fac Ext Cet Arc Hub Fac DSF Fac Arm Total Allies 25 | . . . . . . . . . 13 5 . . . . . 7 Largest Group 7 | . . . . . . . . . 7 7 5 4 . . . 7 Highest-Rated Group 648 | . . . . . . . . . 324 648 527 384 . . . 372 Highest-Rated Ally 159 | . . . . . . . . . 159 153 143 96 . . . 68 Total Orders . | . . . . . . . . . . . . . . . . . Ally Attacks 263 | . . . . . . . . . 51 65 36 13 . . . 98 Total Damage 9703 | . . . . . . . . . 1083 2646 1267 678 . . . 4029 Kills 39 | . . . . . . . . . 3 10 4 2 . . . 20 Allies Corrupted . | . . . . . . . . . . . . . . . . . Allies Melted 2 | . . . . . . . 1 . 1 . . . . . . . Intel | -11 -10 -10 -10 -9 -8 -7 -7 -6 -6 -6 -6 -6 -5 -5 -4 -4 ------- Run | Yrd Mat Min Exi Min Mat Fac DSF Fac Ext Cet Arc Hub Fac DSF Fac Arm Active Infowar (turns) 4597 | 28 1341 335 . . . . . 178 343 807 174 633 . 55 703 . Optics 2401 | . 1308 335 . . . . . . . . . . . 55 703 . Sensors 939 | . . . . . . . . 178 173 . . 588 . . . . Traps 1850 | . . . . . . . . 141 341 807 174 387 . . . . Seismic 305 | 28 277 . . . . . . . . . . . . . . . Robot Analysis Total 1 | . . . . . . . . . 1 . . . . . . . Derelict Logs Recovered 2 | . . 2 . . . . . . . . . . . . . . Drone Launches . | . . . . . . . . . . . . . . . . . Drone Recoveries . | . . . . . . . . . . . . . . . . . Exploration | -11 -10 -10 -10 -9 -8 -7 -7 -6 -6 -6 -6 -6 -5 -5 -4 -4 ------------- Run | Yrd Mat Min Exi Min Mat Fac DSF Fac Ext Cet Arc Hub Fac DSF Fac Arm Turns Passed 9568 | 120 1341 527 433 230 1897 172 104 178 343 807 174 1300 393 127 852 570 Spaces Moved 6278 | 57 739 302 257 137 1070 178 203 266 613 427 83 476 211 92 682 485 Core 460 | 4 47 . . . . . 13 11 . 4 . . . . 279 102 Treads 3002 | 53 588 302 257 137 656 . . . . 386 83 476 64 . . . Legs 791 | . . . . . . . . . . . . . 147 92 403 149 Wheels . | . . . . . . . . . . . . . . . . . Hover 1042 | . . . . . 414 178 190 111 124 25 . . . . . . Flight 983 | . 104 . . . . . . 144 489 12 . . . . . 234 Fastest Speed 27 | 50 37 160 160 160 38 38 38 27 27 32 160 160 120 120 50 37 Average Speed 110 | 152 146 160 160 160 115 38 49 48 39 155 160 160 133 120 91 63 Slowest Speed 600 | 160 320 160 160 160 245 38 150 76 195 600 160 160 270 120 190 120 Overloaded Moves . | . . . . . . . . . . . . . . . . . Propulsion Burnouts . | . . . . . . . . . . . . . . . . . Robots Hopped 3 | . . . . . . . . . . . . . . . . 3 Potential Cave-ins 8 | . . . . . . . . . . . . . . . 8 . Cave-ins Triggered 1 | . . . . . . . . . . . . . . . 1 . Exploration Rate (%) 51 | 3 72 67 60 29 73 4 100 8 70 95 82 59 5 87 26 36 Regions Visited 16 Branch Regions 8 Pre-discovered Areas . | . . . . . . . . . . . . . . . . . Known Exits Taken 7 | . . . . . . 1 . 1 1 1 1 1 1 . . . Unknown Exits Taken 7 | 1 1 1 1 1 1 . . . . . . . . . 1 . Scrap Searched 2 | . . 1 . 1 . . . . . . . . . . . . Spaces Dug 23 | . . . . . 1 1 . 1 . . . . . . 20 . Terrain Destroyed 185 | . 4 . . . 2 1 . 1 . . 1 47 . . 60 69 Melee 3 | . . . . . 1 1 . 1 . . . . . . . . Projectile 99 | . . . . . . . . . . . 1 46 . . 50 2 AOE 82 | . 4 . . . 1 . . . . . . . . . 10 67 Terrain Rammed . | . . . . . . . . . . . . . . . . . Walls Destroyed . | . . . . . . . . . . . . . . . . . Machines Disabled . | . . . . . . . . . . . . . . . . . Actions | -11 -10 -10 -10 -9 -8 -7 -7 -6 -6 -6 -6 -6 -5 -5 -4 -4 --------- Run | Yrd Mat Min Exi Min Mat Fac DSF Fac Ext Cet Arc Hub Fac DSF Fac Arm Total 8333 | 73 940 329 281 145 1607 279 206 311 701 561 112 813 320 104 825 726 Wait 1149 | . 97 9 11 . 291 92 1 28 48 98 20 214 99 . 58 83 Move 6256 | 56 738 301 256 136 1069 177 202 265 612 426 82 475 210 91 681 479 Hop 3 | . . . . . . . . . . . . . . . . 3 Pick Up 126 | 3 29 3 2 3 45 2 . 3 3 4 . 1 1 1 13 13 Fast Attach 99 | 6 6 2 . 1 15 2 . 4 3 9 2 10 5 4 7 23 Attach 52 | 1 4 . 2 . 10 2 1 3 2 1 . . 3 1 8 14 Detach 24 | . 1 . 2 . 2 . 1 1 1 2 . 2 . 3 2 7 Swap 58 | . 7 3 4 . 25 . . 2 2 2 . 3 . . 7 3 Drop 144 | . 23 3 4 3 62 2 1 3 4 11 2 7 2 2 6 9 Fire 264 | 7 35 8 . 2 51 . . 1 . 2 6 100 . 2 42 8 Melee 60 | . . . . . 37 2 . 1 13 6 . . . . . 1 Ram . | . . . . . . . . . . . . . . . . . Kick . | . . . . . . . . . . . . . . . . . Crush 1 | . . . . . . . . . . . . 1 . . . . Escape Stasis 15 | . . . . . . . . . 13 . . . . . . 2 Rewire 81 | . . . . . . . . . . . . . . . . 81 Trap . | . . . . . . . . . . . . . . . . . Miscellaneous 1 | . . . . . . . . . . . . . . . 1 . Route ------- -11/Scrapyard -10/Materials (discovered 3 exits: [*Mat x2] / [*Min]) -10/Mines (discovered 3 exits: [*Mat x2] / *Exi) -10/Exiles -9/Mines -8/Materials -7/Factory -7/DSF -6/Factory -6/Extension (discovered 2 exits: *Fac / *Cet) -6/Cetus (discovered 3 exits: *Fac x2 / *Arc) -6/Archives (discovered 3 exits: *Fac / *Hub x2) -6/Hub_04(d) -5/Factory -5/DSF -4/Factory -4/Armory History --------- Turn | Location | Event 10 | -11/Scrapyard | Discovered new exit (range 16) 121 | -11/Scrapyard | Entered Materials 311 | -10/Materials | Build established: Mutant 428 | -10/Materials | Repaired Spread Laser 770 | -10/Materials | Discovered new exit (range 18) 976 | -10/Materials | Discovered new exit (range 16) 1039 | -10/Materials | Discovered new exit (range 18) 1462 | -10/Materials | Entered Mines 1472 | -10/Mines | Discovered new exit (range 3) 1501 | -10/Mines | Learned Materials stockpile data 1511 | -10/Mines | Learned Materials emergency access door positions 1530 | -10/Mines | Discovered new exit (range 12) 1983 | -10/Mines | Deemed a non-threat by the Exiles lab entrance 1983 | -10/Mines | Discovered new exit (range 5) 1989 | -10/Mines | Entered Exiles 2031 | -10/Exiles | Met 8R-AWN 2060 | -10/Exiles | Met EX-HEX 2106 | -10/Exiles | Met EX-BIN 2126 | -10/Exiles | Aligned with FarCom system 2127 | -10/Exiles | Given EX-Vault access code 2166 | -10/Exiles | Opened EX-Vault 2179 | -10/Exiles | Found Longsword +1 2211 | -10/Exiles | Warned to stay clear of 0b10 Research branches 2256 | -10/Exiles | Met EX-DEC 2317 | -10/Exiles | Discovered new exit (range 14) 2422 | -10/Exiles | Left Exiles lab with Longsword +1 2422 | -10/Exiles | Entered Mines 2502 | -9/Mines | Received a Rocket Launcher from a helpful Derelict 2633 | -9/Mines | Discovered new exit (range 9) 2652 | -9/Mines | Entered Materials 2652 | -8/Materials | Evolved 4 slots: Propulsion x2, Utility x2 2724 | -8/Materials | Repaired Spread Laser 3771 | -8/Materials | Garrison activated, responded to threat 4411 | -8/Materials | Repaired Aerolev Unit 4527 | -8/Materials | Discovered new exit (range 14) 4549 | -8/Materials | Entered Factory 4549 | -7/Factory | Evolved 2 slots: Utility x2 4573 | -7/Factory | Central database locked down 4721 | -7/Factory | Identified exit to DSF 4721 | -7/Factory | Entered DSF 4721 | -7/DSF | Met a pair of Sappers preparing to destroy DSF 4746 | -7/DSF | Additional patrols routed to DSF 4754 | -7/DSF | Discovered new exit (range 16) 4763 | -7/DSF | Lost 4 parts (1p3n) 4801 | -7/DSF | Build established: Hacker-Mutant 4825 | -7/DSF | Entered Factory 4825 | -6/Factory | Evolved 2 slots: Utility x2 4998 | -6/Factory | Discovered new exit (range 15) 5003 | -6/Factory | Identified exit to Extension 5003 | -6/Factory | Entered Extension 5012 | -6/Extension | Rescued a captive Derelict 5013 | -6/Extension | Rescued a captive Derelict 5043 | -6/Extension | Rescued A7 5062 | -6/Extension | Rescued a captive Derelict 5063 | -6/Extension | Rescued a captive Derelict 5115 | -6/Extension | Build established: Hacker-Scout 5145 | -6/Extension | Rescued a captive Derelict 5147 | -6/Extension | Rescued a captive Derelict 5158 | -6/Extension | Rescued a captive Derelict 5161 | -6/Extension | Spotted B-75 Beast 5167 | -6/Extension | Spotted B-75 Beast 5189 | -6/Extension | Energy Cycler disabled 5189 | -6/Extension | Rescued a captive Derelict 5190 | -6/Extension | Rescued a captive Derelict 5191 | -6/Extension | Rescued a captive Derelict 5191 | -6/Extension | Rescued a captive Derelict 5193 | -6/Extension | Rescued a captive Derelict 5196 | -6/Extension | Rescued a captive Derelict 5235 | -6/Extension | Lost 5 parts (1p3n1u) 5318 | -6/Extension | Discovered new exit (range 10) 5319 | -6/Extension | Discovered new exit (range 6) 5328 | -6/Extension | Identified exit to Cetus 5332 | -6/Extension | Identified exit to Factory 5346 | -6/Extension | Entered Cetus 5346 | -6/Cetus | Accompanied by 4 allies (A7) 5351 | -6/Cetus | Acquired a Cetus Manufacturing Module code from A7 5357 | -6/Cetus | Spotted Cetus Guard 5357 | -6/Cetus | Spotted Cetus Guard 5362 | -6/Cetus | Spotted Cetus Guard 5362 | -6/Cetus | Spotted Cetus Guard 5371 | -6/Cetus | Destroyed Cetus Guard 5373 | -6/Cetus | Destroyed Cetus Guard 5380 | -6/Cetus | Allies destroyed Cetus Guard 5383 | -6/Cetus | Allies destroyed Cetus Guard 5489 | -6/Cetus | Build established: Hacker-Mutant 5527 | -6/Cetus | Started Cetus Manufacturing Module 5538 | -6/Cetus | Escorted A7 to Cetus Mainframe 5552 | -6/Cetus | Manufactured an Enhanced Grunt 5577 | -6/Cetus | Manufactured an Enhanced Grunt 5602 | -6/Cetus | Manufactured an Enhanced Grunt 5627 | -6/Cetus | Manufactured an Enhanced Grunt 5652 | -6/Cetus | Manufactured an Enhanced Grunt 5736 | -6/Cetus | Discovered exit to Factory (range 15) 5947 | -6/Cetus | Discovered new exit (range 15) 5969 | -6/Cetus | Identified exit to Archives 6014 | -6/Cetus | Spotted Cetus Guard 6014 | -6/Cetus | Spotted Cetus Guard 6018 | -6/Cetus | Spotted Cetus Guard 6018 | -6/Cetus | Spotted Cetus Guard 6026 | -6/Cetus | Allies destroyed Cetus Guard 6029 | -6/Cetus | Allies destroyed Cetus Guard 6031 | -6/Cetus | Allies destroyed Cetus Guard 6037 | -6/Cetus | Destroyed Cetus Guard 6042 | -6/Cetus | Discovered exit to Factory (range 15) 6052 | -6/Cetus | Met Revision 17 6096 | -6/Cetus | Security sweep announced 6153 | -6/Cetus | Entered Archives 6153 | -6/Archives | Accompanied by 5 allies (A7) 6158 | -6/Archives | Received a hacking code to weaken MAIN.C 6249 | -6/Archives | Unable to access archive contents 6255 | -6/Archives | Discovered exit to Factory (range 15) 6265 | -6/Archives | Unable to access archive contents 6271 | -6/Archives | Discovered new exit (range 15) 6281 | -6/Archives | Unable to access archive contents 6287 | -6/Archives | Discovered new exit (range 16) 6297 | -6/Archives | Unable to access archive contents 6321 | -6/Archives | Identified exit to Hub_04(d) 6327 | -6/Archives | Entered Hub_04(d) 6327 | -6/Hub_04(d) | Accompanied by 4 allies 6494 | -6/Hub_04(d) | Lost 4 allies 6523 | -6/Hub_04(d) | Spotted B-75 Beast 6533 | -6/Hub_04(d) | Destroyed B-75 Beast 6655 | -6/Hub_04(d) | Build established: Scavenger-Skirmisher 6662 | -6/Hub_04(d) | Destroyed 7 combat bots 7232 | -6/Hub_04(d) | Build established: Scavenger-Mutant 7377 | -6/Hub_04(d) | First assault squad dispatched 7570 | -6/Hub_04(d) | Network Hub disabled 7621 | -6/Hub_04(d) | Discovered exit to Factory (range 5) 7622 | -6/Hub_04(d) | Spotted Lightning 7622 | -6/Hub_04(d) | Spotted Lightning 7623 | -6/Hub_04(d) | Spotted Lightning 7627 | -6/Hub_04(d) | Entered Factory 7627 | -5/Factory | Evolved 2 slots: Power x1, Weapon x1 7693 | -5/Factory | Repaired Centrium Heavy Treads 8017 | -5/Factory | Identified exit to DSF 8020 | -5/Factory | Entered DSF 8067 | -5/DSF | Additional patrols routed to DSF 8128 | -5/DSF | Discovered new exit (range 14) 8145 | -5/DSF | Identified exit to Factory 8147 | -5/DSF | Entered Factory 8147 | -4/Factory | Evolved 2 slots: Propulsion x1, Utility x1 8188 | -4/Factory | Build established: Scavenger-Tank 8509 | -4/Factory | Spotted B-86 Titan 8757 | -4/Factory | Crushed by falling debris 8850 | -4/Factory | Released all parts (7) 8878 | -4/Factory | Lost 14 parts (2p3n6u3w) 8933 | -4/Factory | System corruption reached 10% 8948 | -4/Factory | Core integrity fell below 50% 8991 | -4/Factory | Discovered new exit (range 16) 8998 | -4/Factory | Core integrity fell below 20% 8999 | -4/Factory | Entered Armory 9013 | -4/Armory | Found Prototype Processor 9015 | -4/Armory | Found Exp. System Shield 9119 | -4/Armory | Build established: Mutant 9200 | -4/Armory | Identified Exp. Signal Interpreter 9481 | -4/Armory | Lost 4 allies 9551 | -4/Armory | Released all parts (11) 9569 | -4/Armory | Destroyed by L-61 Swordsman with Power Sword Last Messages --------------- 09551_ Released Enh. Hardcell Cannon. 09551_ Released Adv. Cloaking Device. 09551_ Acquired Field Propulsion Array. 09554_ Extracted 9 energy. 09554_ Acquired Adv. Energy Well. 09556_ Penetrated by Slug. 09556_ Component Storage disabled. 09557_ Triggered Stasis Trap. 09557_ A bubble of rippling energy engulfs the area. 09557_ Field strength at 88. 09558_ Field strength at 76. 09563_ Penetrated by Slug. 09564_ Component Storage disabled. 09564_ Field strength at 46. 09565_ Destroyed Arc Projector. 09565_ Destroyed Imp. Arc Projector. 09566_ The unstable cave ceiling collapses. 09566_ Slug penetrates Wall. 09566_ Penetrated by Slug. Map ----- +----------------------------------------------------+ | | | | | | | | | | | | | ?????????????????????????????????????????????????? | | ?????????????????????????????????????????????????? | | ?????????????????????????????????????????????????? | | ?????????????????????????????????????????????????? | | ?????????????????????????????????????????????????? | | ?????????????????????????????????????????????????? | | ??????????????????????????????#??????????????????? | | ?????????????????????????#""?""??????????????????? | | ?????????????????????????#"" F"??????????????????? | | ??????????????????????####"" ""####??????????????? | | ??????????????????????# #??????######### | | ??????????????????????# """ """ #??????# | | ??????????????????????# """ """ #??????# | | ??????????????????????# """ """ !*####???# !! | | ??????????????????????# """ ] ] #???# !! | | ??????????????????????# " ==! ###?# !! | | ?????????????????###??# l #?# !! | | ?????????????????# ## x #### !! | | ?????????????????+ T" x hH" ! | | ?????????????????# " @l #### | | ?????????????????# ### #??# % | | ?????????????????##?Y???# Y #???######### | | ????????????????????????# #?h?????????? | | ????????????????????????## ##### #???????????? | | ?????????????????????????? Y ?????+??Y????????? | | ?????????????????????????? Y ???????Y????????? | | ?????????????????????????# ####???????????????? | | ?????????????????????????##+###??????????????????? | | ?????????????????????????????????????????????????? | | ?????????????????????????????????????????????????? | | ?????????????????????????????????????????????????? | | ?????????????????????????????????????????????????? | | ?????????????????????????????????????????????????? | | ?????????????????????????????????????????????????? | | ?????????????????????????????????????????????????? | | ?????????????????????????????????????????????????? | | ?????????????????????????????????????????????????? | | ?????????????????????????????????????????????????? | | ?????????????????????????????????????????????????? | | ?????????????????????????????????????????????????? | | ?????????????????????????????????????????????????? | | ?????????????????????????????????????????????????? | | ?????????????????????????????????????????????????? | | ?????????????????????????????????????????????????? | +----------------------------------------------------+ Best States ------------- Heat Dissipation 88 Energy Generation 45 Energy Capacity 950 Matter Stores 300 Matter Capacity 300 Sight Range 22 Robot Scan Range 16 Terrain Scan Density 10 Additional Mass Support 16 Armor Coverage 2700 Weapon Shielding 66 Evasion (%) 82 Targeting Accuracy 24 Recoil Reduction 4 Energy Filtering 50 Kinecelleration 30 Offensive Hacking 40 Defensive Hacking 24 Item Schematics ----------------- Plasma Cannon | -7/Factory | Extracted Prc. Assault Rifle | -7/Factory | Extracted Microactuators | -7/Factory | Extracted Hyb. Deuterium Engine | -7/Factory | Extracted Adv. Terrain Scan Processor | -7/Factory | Extracted Adv. Assault Cannon | -7/Factory | Extracted Com. Matter Pod | -7/Factory | Extracted Seismic Detector | -7/Factory | Extracted Com. Battery | -7/Factory | Extracted Lrg. Matter Pod | -7/Factory | Extracted Hvy. EM Pulse Gun | -7/Factory | Extracted Adv. Weight Redist. System | -7/Factory | Extracted Transmission Jammer | -7/Factory | Extracted Flak Cannon | -7/Factory | Extracted Lgt. Nuclear Core | -7/Factory | Extracted Shield Generator | -7/Factory | Extracted Nuclear Pulse Array | -6/Extension | Hacked Robot Schematics ------------------ None Fabricated ------------ Nothing Repaired ---------- Spread Laser | 78% | -10/Materials Spread Laser | 42% | -8/Materials Aerolev Unit | 60% | -8/Materials Centrium Heavy Treads | 4% | -5/Factory Studied --------- Imp. Hover Unit | -7/Factory | Hacked Alien Tech Used ----------------- None Achievements -------------- Fancy Inventory Fishing Tech Main Advantage Prison Break Project G-00 Revising The Future Challenges ------------ None Game ------ Seed BiomechanicalNullMatrix Manual? 0 Play Time 01:57:32 Cumulative 77.7 hours Start 2026.05.03 @ 15:15:51 End 2026.05.03 @ 17:18:49 Sessions 1 Manual Loads 0 Difficulty Rogue Special Mode None Game No. 79 Rogue 79 Adventurer 0 Explorer 0 Win Type - Total 1 Types 1/0/0/0/0/0/0/0/0/0 Lore% 31 Gallery% 46 Achievement% 40 Wizard Run 0 Options --------- Layout 1 ASCII 0 Keyboard 0 Movement Mouse Keybinds 0 Fullscreen 1 Font 24/Smallcaps Map View 50x35 Zoom Use 0% Tactical HUD 1 Map Filters NONE Filters NONE Steam 1 RUN: 32abd070-3dd0-4eaf-a866-c9e11c72dda1